[Event "26th OIBM 2023"]
[Site "Gmund am Tegernsee"]
[Date "2023.11.05"]
[Round "9.9"]
[White "Reimann, Sebastian"]
[Black "Meins, Gerlef"]
[Result "1-0"]
[ECO "B89"]
[WhiteElo "2342"]
[BlackElo "2412"]
[Annotator "RC"]
[PlyCount "103"]
[EventDate "2023.10.04"]
[EventType "swiss"]
[EventCountry "GER"]
[SourceTitle "playchess.com"]
[Source "ChessBase"]
[SourceQuality "1"]
[TimeControl "40/5400+30:1800+30"]

1. e4 {[%emt 0:00:03]} c5 {[%emt 0:00:06]} 2. Nf3 {[%emt 0:00:06]} Nc6 {[%emt 0:00:29]} 3. d4 {[%emt 0:00:15]} cxd4 {[%emt 0:00:06]} 4. Nxd4 {[%emt 0:00:05]} Nf6 {[%emt 0:00:22]} 5. Nc3 {[%emt 0:00:09]} d6 {[%emt 0:00:25]} 6. Bc4 {[%emt 0:00:10]} e6 {[%emt 0:00:31]} 7. Be3 {[%emt 0:00:15]} Be7 {[%emt 0:00:24]} 8. Qe2 {[%emt 0:00:21]} a6 {[%emt 0:00:46]} 9. O-O-O {[%emt 0:00:17]} Qc7 {[%emt 0:01:52]} 10. Nxc6 {[%emt 0:04:19]} Qxc6 {[%emt 0:13:39]} 11. Bd3 {[%emt 0:05:27]} O-O {[%emt 0:13:07]} 12. f4 {[%emt 0:08:43]} Nd7 {[%emt 0:35:05]} 13. Bd4 {[%emt 0:10:29]} Nc5 {[%emt 0:01:25]} 14. f5 {[%emt 0:08:23]} Re8 {[%emt 0:11:47]} 15. f6 {[%emt 0:18:46]} Bxf6 {[%emt 0:00:47]} 16. Bxf6 {[%emt 0:00:18]} gxf6 {[%emt 0:00:04]} 17. Qg4+ {[%emt 0:00:40]} Kf8 {[%emt 0:01:20]} 18. Qh4 {[%emt 0:00:20]} Nd7 {[%emt 0:01:49]} 19. Qxh7 {[%emt 0:00:33]} Qc5 {[%emt 0:04:06]} 20. Be2 {[%emt 0:01:35]} Ke7 {[%emt 0:04:39]} 21. Rd2 {[%emt 0:05:27]} Nf8 {[%emt 0:03:44]} 22. Qh5 {[%emt 0:04:31]} Qxh5 {[%emt 0:01:10]} 23. Bxh5 {[%emt 0:00:06]} b5 {[%emt 0:01:17]} 24. Rhd1 {[%emt 0:03:03]} Rd8 {[%emt 0:00:07]} 25. Rd4 {[%emt 0:00:20]} Bb7 {[%emt 0:00:27]} 26. a4 {[%emt 0:00:32]} Bc6 {[%emt 0:01:22]} 27. axb5 {[%emt 0:00:43]} axb5 {[%emt 0:00:04]} 28. Be2 {[%emt 0:00:30]} Rab8 {[%emt 0:01:25]} 29. Rb4 {[%emt 0:02:21]} Ng6 {[%emt 0:00:27]} 30. Nxb5 {[%emt 0:00:49]} Ne5 {[%emt 0:00:15]} 31. Rdd4 {[%emt 0:03:31]} Rh8 {[%emt 0:01:49]} 32. h3 {[%emt 0:01:10]} f5 {[%emt 0:00:23]} 33. exf5 {[%emt 0:02:16]} Bxg2 {[%emt 0:00:04]} 34. fxe6 {[%emt 0:05:56]} fxe6 {[%emt 0:00:08]} 35. Ra4 {[%emt 0:00:13]} Nc6 {[%emt 0:00:41]} 36. Rg4 {[%emt 0:00:58]} Bxh3 {[%emt 0:01:24]} 37. Rg7+ {[%emt 0:00:06]} Kf6 {[%emt 0:00:06]} 38. Rc7 {[%emt 0:00:05]} Bg2 {[%emt 0:00:55]} 39. Rg4 {[%emt 0:05:55]} Rh2 {[%emt 0:00:44]} 40. Nxd6 {[%emt 0:01:01]} Ne5 {[%emt 0:00:32]} 41. Rf4+ {[%emt 0:30:44]} Kg6 {[%emt 0:06:29]} 42. Rc3 {[%emt 0:00:00]} Rd8 {[%emt 0:16:04]} 43. Rg3+ {[%emt 0:00:00]} Kh7 {[%emt 0:00:25]} 44. Rd4 {[%emt 0:00:00]} Bd5 {[%emt 0:00:55]} 45. Nb5 {[%emt 0:00:00]} Rf8 {[%emt 0:01:34]} 46. Nc3 {[%emt 0:00:00]} Rff2 {[%emt 0:02:22]} 47. Re3 {[%emt 0:00:00]} Nc4 {[%emt 0:02:37]} 48. Bd3+ {[%emt 0:00:00]} Kh6 {[%emt 0:00:31]} 49. Re1 {[%emt 0:00:00]} Nd2 {[%emt 0:02:08]} 50. Nxd5 {[%emt 0:00:00]} Nf3 {[%emt 0:01:50]} 51. Rxe6+ {[%emt 0:00:00]} Kg7 {[%emt 0:00:40]} 52. Re7+ {[%emt 0:00:00]} 1-0

[Event "26th OIBM 2023"]
[Site "Gmund am Tegernsee"]
[Date "2023.11.05"]
[Round "9.10"]
[White "Meissner, Felix"]
[Black "Schneider, Jana"]
[Result "1-0"]
[ECO "C47"]
[WhiteElo "2382"]
[BlackElo "2285"]
[Annotator "RC"]
[PlyCount "135"]
[EventDate "2023.10.04"]
[EventType "swiss"]
[EventCountry "GER"]
[SourceTitle "playchess.com"]
[Source "ChessBase"]
[SourceQuality "1"]
[TimeControl "40/5400+30:1800+30"]

1. e4 {[%emt 0:00:03]} e5 {[%emt 0:00:05]} 2. Nf3 {[%emt 0:00:27]} Nc6 {[%emt 0:00:07]} 3. Nc3 {[%emt 0:01:14]} Nf6 {[%emt 0:00:09]} 4. h3 {[%emt 0:03:16]} d5 {[%emt 0:05:04]} 5. exd5 {[%emt 0:00:36]} Nxd5 {[%emt 0:00:08]} 6. Bb5 {[%emt 0:00:37]} Nxc3 {[%emt 0:00:27]} 7. bxc3 {[%emt 0:00:18]} Bd6 {[%emt 0:00:56]} 8. O-O {[%emt 0:01:18]} O-O {[%emt 0:00:41]} 9. d4 {[%emt 0:01:14]} exd4 {[%emt 0:03:09]} 10. cxd4 {[%emt 0:00:17]} h6 {[%emt 0:03:55]} 11. c4 {[%emt 0:03:29]} Qf6 {[%emt 0:04:38]} 12. Be3 {[%emt 0:03:16]} Rd8 {[%emt 0:02:51]} 13. Bxc6 {[%emt 0:06:33]} bxc6 {[%emt 0:00:09]} 14. Nd2 {[%emt 0:00:33]} Qg6 {[%emt 0:05:33]} 15. Qf3 {[%emt 0:01:02]} Bf5 {[%emt 0:00:12]} 16. c5 {[%emt 0:09:11]} Be7 {[%emt 0:02:47]} 17. Kh1 {[%emt 0:03:47]} Rd5 {[%emt 0:03:30]} 18. Qf4 {[%emt 0:06:00]} Bf6 {[%emt 0:08:20]} 19. Rfe1 {[%emt 0:10:34]} Rc8 {[%emt 0:04:25]} 20. Nf1 {[%emt 0:06:27]} Bd3 {[%emt 0:14:49]} 21. Ng3 {[%emt 0:03:38]} h5 {[%emt 0:01:22]} 22. Ne2 {[%emt 0:07:50]} Rd7 {[%emt 0:12:30]} 23. Rad1 {[%emt 0:03:40]} Rcd8 {[%emt 0:01:13]} 24. Qg3 {[%emt 0:04:10]} h4 {[%emt 0:04:02]} 25. Qxg6 {[%emt 0:02:03]} Bxg6 {[%emt 0:00:05]} 26. Rd2 {[%emt 0:00:54]} Rb8 {[%emt 0:01:52]} 27. Nf4 {[%emt 0:00:56]} Bf5 {[%emt 0:00:49]} 28. Red1 {[%emt 0:03:40]} Rb5 {[%emt 0:02:25]} 29. Ne2 {[%emt 0:01:15]} Be6 {[%emt 0:01:04]} 30. Nc3 {[%emt 0:00:52]} Rb4 {[%emt 0:01:48]} 31. Kg1 {[%emt 0:02:46]} Rc4 {[%emt 0:01:54]} 32. Ne4 {[%emt 0:01:02]} Be7 {[%emt 0:00:31]} 33. Rb1 {[%emt 0:01:30]} Bf5 {[%emt 0:01:49]} 34. f3 {[%emt 0:00:54]} Kh7 {[%emt 0:01:12]} 35. Rb3 {[%emt 0:01:39]} Ra4 {[%emt 0:02:30]} 36. Nc3 {[%emt 0:01:02]} Ra5 {[%emt 0:00:42]} 37. a4 {[%emt 0:01:10]} Be6 {[%emt 0:00:20]} 38. Rb7 {[%emt 0:01:21]} Bf6 {[%emt 0:01:43]} 39. Kf2 {[%emt 0:00:48]} Bc4 {[%emt 0:01:52]} 40. Rb4 {[%emt 0:01:43]} Ba6 {[%emt 0:04:01]} 41. Ne4 {[%emt 0:32:17]} Be7 {[%emt 0:32:14]} 42. Ke1 {[%emt 0:03:35]} f5 {[%emt 0:00:00]} 43. Ng5+ {[%emt 0:00:00]} Kg6 {[%emt 0:00:00]} 44. f4 {[%emt 0:00:00]} Bxg5 {[%emt 0:00:00]} 45. fxg5 {[%emt 0:00:00]} Re7 {[%emt 0:00:00]} 46. Kf2 {[%emt 0:00:00]} Re4 {[%emt 0:00:00]} 47. Rdb2 {[%emt 0:00:00]} f4 {[%emt 0:00:00]} 48. Bd2 {[%emt 0:00:00]} Kxg5 {[%emt 0:00:00]} 49. Ra2 {[%emt 0:00:00]} Bd3 {[%emt 0:00:00]} 50. Bc3 {[%emt 0:00:00]} Re3 {[%emt 0:00:00]} 51. Be1 {[%emt 0:00:00]} Kf5 {[%emt 0:00:00]} 52. Rbb2 {[%emt 0:00:00]} Ra6 {[%emt 0:00:00]} 53. a5 {[%emt 0:00:00]} Ke4 {[%emt 0:00:00]} 54. Ra4 {[%emt 0:01:01]} Bb5 {[%emt 0:00:00]} 55. Raa2 {[%emt 0:01:04]} Kxd4 {[%emt 0:01:29]} 56. Rb4+ {[%emt 0:00:22]} Ke5 {[%emt 0:00:33]} 57. Bd2 {[%emt 0:01:19]} Re2+ {[%emt 0:07:08]} 58. Kf3 {[%emt 0:00:02]} Rxa5 {[%emt 0:01:02]} 59. Bxf4+ {[%emt 0:01:22]} Kd5 {[%emt 0:01:00]} 60. Rxa5 {[%emt 0:00:23]} Rc2 {[%emt 0:00:13]} 61. Be3 {[%emt 0:01:24]} Be2+ {[%emt 0:00:41]} 62. Kf4 {[%emt 0:00:08]} Bc4 {[%emt 0:00:27]} 63. Ra1 {[%emt 0:01:16]} a5 {[%emt 0:00:24]} 64. Rxa5 {[%emt 0:00:43]} Rxg2 {[%emt 0:00:12]} 65. Ra8 {[%emt 0:01:03]} Be2 {[%emt 0:01:19]} 66. Re4 {[%emt 0:01:33]} g5+ {[%emt 0:00:26]} 67. Kf5 {[%emt 0:00:01]} Bg4+ {[%emt 0:00:39]} 68. hxg4 {[%emt 0:00:34]} 1-0

[Event "26th OIBM 2023"]
[Site "Gmund am Tegernsee"]
[Date "2023.11.05"]
[Round "9.11"]
[White "Morawietz, Dieter"]
[Black "Cherniaiev, Tykhon"]
[Result "1/2-1/2"]
[ECO "A46"]
[WhiteElo "2378"]
[BlackElo "2278"]
[Annotator "RC"]
[PlyCount "79"]
[EventDate "2023.10.04"]
[EventType "swiss"]
[EventCountry "GER"]
[SourceTitle "playchess.com"]
[Source "ChessBase"]
[SourceQuality "1"]
[TimeControl "40/5400+30:1800+30"]

1. Nf3 {[%emt 0:00:03]} Nf6 {[%emt 0:00:13]} 2. d4 {[%emt 0:00:26]} e6 {[%emt 0:00:20]} 3. Bg5 {[%emt 0:02:00]} h6 {[%emt 0:01:04]} 4. Bxf6 {[%emt 0:00:10]} Qxf6 {[%emt 0:00:07]} 5. e4 {[%emt 0:00:11]} g5 {[%emt 0:04:07]} 6. c3 {[%emt 0:05:01]} Bg7 {[%emt 0:01:45]} 7. Na3 {[%emt 0:00:51]} a6 {[%emt 0:01:32]} 8. Bd3 {[%emt 0:01:37]} d6 {[%emt 0:04:55]} 9. Qe2 {[%emt 0:03:37]} e5 {[%emt 0:14:18]} 10. dxe5 {[%emt 0:09:31]} dxe5 {[%emt 0:00:08]} 11. Nc4 {[%emt 0:00:12]} Nc6 {[%emt 0:05:18]} 12. Ne3 {[%emt 0:01:22]} Be6 {[%emt 0:00:30]} 13. Bc4 {[%emt 0:11:08]} Ne7 {[%emt 0:01:57]} 14. Bxe6 {[%emt 0:14:42]} Qxe6 {[%emt 0:00:28]} 15. Qc4 {[%emt 0:02:07]} Qxc4 {[%emt 0:14:24]} 16. Nxc4 {[%emt 0:00:05]} g4 {[%emt 0:00:11]} 17. Nfd2 {[%emt 0:02:05]} h5 {[%emt 0:00:37]} 18. h3 {[%emt 0:04:39]} gxh3 {[%emt 0:03:39]} 19. Rxh3 {[%emt 0:00:47]} Ng6 {[%emt 0:00:50]} 20. g3 {[%emt 0:02:44]} h4 {[%emt 0:01:49]} 21. Ke2 {[%emt 0:06:21]} O-O-O {[%emt 0:00:28]} 22. Rah1 {[%emt 0:00:09]} hxg3 {[%emt 0:08:14]} 23. fxg3 {[%emt 0:00:15]} Rxh3 {[%emt 0:03:57]} 24. Rxh3 {[%emt 0:00:17]} Rh8 {[%emt 0:01:15]} 25. Rxh8+ {[%emt 0:00:21]} Nxh8 {[%emt 0:00:19]} 26. Nf3 {[%emt 0:03:57]} Ng6 {[%emt 0:00:47]} 27. Ne3 {[%emt 0:07:42]} Kd7 {[%emt 0:02:34]} 28. Nf5 {[%emt 0:00:49]} Bf6 {[%emt 0:00:20]} 29. Ne1 {[%emt 0:02:55]} Nf8 {[%emt 0:00:50]} 30. Nd3 {[%emt 0:01:25]} b6 {[%emt 0:03:14]} 31. Nb4 {[%emt 0:05:14]} a5 {[%emt 0:00:09]} 32. Nd5 {[%emt 0:00:07]} Bd8 {[%emt 0:00:48]} 33. Nde3 {[%emt 0:05:41]} Ke6 {[%emt 0:01:23]} 34. a4 {[%emt 0:01:30]} Nd7 {[%emt 0:02:30]} 35. b4 {[%emt 0:00:24]} c6 {[%emt 0:02:52]} 36. Nc4 {[%emt 0:01:38]} axb4 {[%emt 0:00:26]} 37. cxb4 {[%emt 0:00:08]} b5 {[%emt 0:00:10]} 38. axb5 {[%emt 0:00:26]} cxb5 {[%emt 0:00:04]} 39. Na3 {[%emt 0:00:17]} Nb8 {[%emt 0:00:13]} 40. Nxb5 {[%emt 0:03:49]} 1/2-1/2

[Event "26th OIBM 2023"]
[Site "Gmund am Tegernsee"]
[Date "2023.11.05"]
[Round "9.12"]
[White "Solomon, Kenny"]
[Black "Hess, Max"]
[Result "0-1"]
[ECO "B12"]
[WhiteElo "2300"]
[BlackElo "2378"]
[Annotator "RC"]
[PlyCount "100"]
[EventDate "2023.10.04"]
[EventType "swiss"]
[EventCountry "GER"]
[SourceTitle "playchess.com"]
[Source "ChessBase"]
[SourceQuality "1"]
[TimeControl "40/5400+30:1800+30"]

1. e4 {[%emt 0:00:06]} c6 {[%emt 0:00:11]} 2. d4 {[%emt 0:00:08]} d5 {[%emt 0:00:08]} 3. e5 {[%emt 0:00:07]} Bf5 {[%emt 0:00:07]} 4. Nf3 {[%emt 0:00:08]} e6 {[%emt 0:00:07]} 5. Be2 {[%emt 0:00:06]} Ne7 {[%emt 0:02:05]} 6. O-O {[%emt 0:00:14]} h6 {[%emt 0:00:30]} 7. Nbd2 {[%emt 0:00:29]} Nd7 {[%emt 0:01:44]} 8. Nb3 {[%emt 0:00:27]} Bh7 {[%emt 0:03:55]} 9. a4 {[%emt 0:01:49]} Qc7 {[%emt 0:06:41]} 10. Bd2 {[%emt 0:00:08]} Ng6 {[%emt 0:06:17]} 11. a5 {[%emt 0:24:18]} Be7 {[%emt 0:13:33]} 12. c4 {[%emt 0:00:32]} dxc4 {[%emt 0:00:51]} 13. Bxc4 {[%emt 0:00:05]} O-O {[%emt 0:06:23]} 14. Qe2 {[%emt 0:08:59]} Rac8 {[%emt 0:06:46]} 15. Rfc1 {[%emt 0:22:58]} Qb8 {[%emt 0:02:44]} 16. g3 {[%emt 0:03:05]} Rfd8 {[%emt 0:08:34]} 17. h4 {[%emt 0:06:27]} Ngf8 {[%emt 0:06:36]} 18. Bf4 {[%emt 0:03:25]} b5 {[%emt 0:02:20]} 19. axb6 {[%emt 0:00:44]} axb6 {[%emt 0:00:13]} 20. Ne1 {[%emt 0:04:09]} Ng6 {[%emt 0:08:47]} 21. Be3 {[%emt 0:02:22]} c5 {[%emt 0:03:47]} 22. h5 {[%emt 0:00:13]} Ngf8 {[%emt 0:00:06]} 23. Bf4 {[%emt 0:07:39]} Bg5 {[%emt 0:05:23]} 24. Bxg5 {[%emt 0:00:04]} hxg5 {[%emt 0:00:03]} 25. Ba6 {[%emt 0:01:42]} Rc7 {[%emt 0:00:49]} 26. Nf3 {[%emt 0:00:53]} cxd4 {[%emt 0:02:27]} 27. g4 {[%emt 0:02:26]} d3 {[%emt 0:02:43]} 28. Qe3 {[%emt 0:00:37]} Rxc1+ {[%emt 0:01:55]} 29. Rxc1 {[%emt 0:00:02]} Nc5 {[%emt 0:00:39]} 30. Nxc5 {[%emt 0:03:05]} bxc5 {[%emt 0:00:02]} 31. Qxg5 {[%emt 0:00:05]} Qxb2 {[%emt 0:03:28]} 32. h6 {[%emt 0:00:28]} Bg6 {[%emt 0:00:04]} 33. hxg7 {[%emt 0:00:06]} Kxg7 {[%emt 0:00:12]} 34. Rf1 {[%emt 0:05:24]} Ra8 {[%emt 0:03:28]} 35. Bc4 {[%emt 0:01:38]} Nh7 {[%emt 0:00:24]} 36. Qe3 {[%emt 0:00:11]} Ra4 {[%emt 0:02:10]} 37. Nd2 {[%emt 0:00:18]} Ra1 {[%emt 0:01:12]} 38. Rxa1 {[%emt 0:02:09]} Qxa1+ {[%emt 0:00:03]} 39. Kg2 {[%emt 0:00:05]} Qc3 {[%emt 0:00:43]} 40. f4 {[%emt 0:01:03]} Qc2 {[%emt 0:01:27]} 41. Kg3 {[%emt 0:04:46]} Qc3 {[%emt 0:02:50]} 42. Ba6 {[%emt 0:06:57]} Nf8 {[%emt 0:01:23]} 43. Bc8 {[%emt 0:00:38]} Qc1 {[%emt 0:11:18]} 44. f5 {[%emt 0:09:51]} c4 {[%emt 0:00:04]} 45. f6+ {[%emt 0:10:16]} Kh7 {[%emt 0:00:09]} 46. Qf2 {[%emt 0:00:38]} c3 {[%emt 0:01:10]} 47. Qh2+ {[%emt 0:00:50]} Kg8 {[%emt 0:00:04]} 48. Nf3 {[%emt 0:00:47]} Qe3 {[%emt 0:02:05]} 49. Bb7 {[%emt 0:00:24]} c2 {[%emt 0:00:34]} 50. g5 {[%emt 0:00:19]} c1=Q {[%emt 0:16:16]} 0-1

[Event "26th OIBM 2023"]
[Site "Gmund am Tegernsee"]
[Date "2023.11.05"]
[Round "9.13"]
[White "Bracker, Arne"]
[Black "Manish Anto Cristiano F"]
[Result "0-1"]
[ECO "B52"]
[WhiteElo "2279"]
[BlackElo "2368"]
[Annotator "RC"]
[PlyCount "54"]
[EventDate "2023.10.04"]
[EventType "swiss"]
[EventCountry "GER"]
[SourceTitle "playchess.com"]
[Source "ChessBase"]
[SourceQuality "1"]
[TimeControl "40/5400+30:1800+30"]

1. e4 {[%emt 0:00:04]} c5 {[%emt 0:00:12]} 2. Nf3 {[%emt 0:00:08]} d6 {[%emt 0:00:08]} 3. Bb5+ {[%emt 0:00:10]} Bd7 {[%emt 0:00:14]} 4. Bxd7+ {[%emt 0:00:21]} Qxd7 {[%emt 0:00:08]} 5. O-O {[%emt 0:00:48]} Nc6 {[%emt 0:00:13]} 6. c3 {[%emt 0:00:34]} Nf6 {[%emt 0:00:17]} 7. Qe2 {[%emt 0:00:12]} e6 {[%emt 0:00:58]} 8. d4 {[%emt 0:00:13]} cxd4 {[%emt 0:01:59]} 9. cxd4 {[%emt 0:00:07]} d5 {[%emt 0:00:05]} 10. e5 {[%emt 0:00:07]} Ne4 {[%emt 0:00:05]} 11. Nbd2 {[%emt 0:00:09]} Nxd2 {[%emt 0:00:08]} 12. Bxd2 {[%emt 0:00:05]} Be7 {[%emt 0:00:17]} 13. Rac1 {[%emt 0:05:04]} O-O {[%emt 0:00:22]} 14. Rfd1 {[%emt 0:02:44]} Rac8 {[%emt 0:01:24]} 15. h4 {[%emt 0:09:07]} f5 {[%emt 0:08:37]} 16. exf6 {[%emt 0:07:29]} Bxf6 {[%emt 0:00:24]} 17. Bg5 {[%emt 0:00:33]} h6 {[%emt 0:09:04]} 18. Bxf6 {[%emt 0:03:02]} Rxf6 {[%emt 0:04:01]} 19. Rc3 {[%emt 0:01:13]} Rcf8 {[%emt 0:04:06]} 20. Re3 {[%emt 0:12:50]} Qf7 {[%emt 0:02:01]} 21. a3 {[%emt 0:18:56]} Qg6 {[%emt 0:04:36]} 22. Rdd3 {[%emt 0:04:52]} Qg4 {[%emt 0:00:53]} 23. g3 {[%emt 0:03:02]} Rf4 {[%emt 0:05:00]} 24. Kg2 {[%emt 0:05:42]} R8f6 {[%emt 0:05:31]} 25. Qd1 {[%emt 0:09:23]} a6 {[%emt 0:05:51]} 26. Qc2 {[%emt 0:10:51]} Rxf3 {[%emt 0:00:30]} 27. Rxf3 {[%emt 0:00:13]} Rxf3 {[%emt 0:00:36]} 0-1

[Event "26th OIBM 2023"]
[Site "Gmund am Tegernsee"]
[Date "2023.11.05"]
[Round "9.14"]
[White "Kurmangaliyeva, Liya"]
[Black "Colpe, Malte"]
[Result "1-0"]
[ECO "E04"]
[WhiteElo "2236"]
[BlackElo "2386"]
[Annotator "RC"]
[PlyCount "81"]
[EventDate "2023.10.04"]
[EventType "swiss"]
[EventCountry "GER"]
[SourceTitle "playchess.com"]
[Source "ChessBase"]
[SourceQuality "1"]
[TimeControl "40/5400+30:1800+30"]

1. d4 {[%emt 0:00:13]} Nf6 {[%emt 0:00:35]} 2. c4 {[%emt 0:00:07]} e6 {[%emt 0:00:31]} 3. Nf3 {[%emt 0:00:27]} d5 {[%emt 0:00:21]} 4. g3 {[%emt 0:00:31]} dxc4 {[%emt 0:03:36]} 5. Bg2 {[%emt 0:00:11]} Nbd7 {[%emt 0:00:16]} 6. O-O {[%emt 0:01:13]} c6 {[%emt 0:01:02]} 7. a4 {[%emt 0:00:37]} b6 {[%emt 0:00:52]} 8. Nfd2 {[%emt 0:07:42]} Ba6 {[%emt 0:00:30]} 9. Bxc6 {[%emt 0:01:30]} Rc8 {[%emt 0:00:06]} 10. Bb5 {[%emt 0:01:50]} Bb7 {[%emt 0:00:08]} 11. Nc3 {[%emt 0:10:06]} h5 {[%emt 0:01:58]} 12. e4 {[%emt 0:05:27]} h4 {[%emt 0:08:51]} 13. Qe2 {[%emt 0:08:01]} Bb4 {[%emt 0:04:01]} 14. Bxc4 {[%emt 0:13:30]} hxg3 {[%emt 0:07:06]} 15. fxg3 {[%emt 0:03:00]} Nb8 {[%emt 0:03:14]} 16. Qd3 {[%emt 0:19:45]} Nc6 {[%emt 0:12:21]} 17. Nf3 {[%emt 0:02:23]} Na5 {[%emt 0:13:18]} 18. Bb5+ {[%emt 0:01:10]} Kf8 {[%emt 0:00:36]} 19. Bg5 {[%emt 0:04:18]} Bxc3 {[%emt 0:10:21]} 20. bxc3 {[%emt 0:02:33]} Bxe4 {[%emt 0:01:52]} 21. Qxe4 {[%emt 0:01:04]} Nxe4 {[%emt 0:00:07]} 22. Bxd8 {[%emt 0:00:03]} Rxd8 {[%emt 0:00:13]} 23. Ne5 {[%emt 0:00:27]} Nf6 {[%emt 0:03:48]} 24. g4 {[%emt 0:00:28]} Ra8 {[%emt 0:24:45]} 25. g5 {[%emt 0:01:07]} a6 {[%emt 0:01:02]} 26. Bd3 {[%emt 0:02:48]} Rg8 {[%emt 0:00:20]} 27. Kh1 {[%emt 0:01:13]} Nd5 {[%emt 0:00:57]} 28. Bh7 {[%emt 0:01:16]} f6 {[%emt 0:00:32]} 29. Bxg8 {[%emt 0:04:08]} Kxg8 {[%emt 0:00:06]} 30. gxf6 {[%emt 0:00:05]} gxf6 {[%emt 0:00:22]} 31. Rg1+ {[%emt 0:00:26]} Kh7 {[%emt 0:01:12]} 32. Rg4 {[%emt 0:01:49]} Rg8 {[%emt 0:00:49]} 33. Rh4+ {[%emt 0:00:12]} Kg7 {[%emt 0:00:06]} 34. Rg1+ {[%emt 0:00:05]} Kf8 {[%emt 0:00:08]} 35. Nd7+ {[%emt 0:00:06]} Ke8 {[%emt 0:00:10]} 36. Rxg8+ {[%emt 0:00:11]} Kxd7 {[%emt 0:00:05]} 37. Rh7+ {[%emt 0:00:14]} Kd6 {[%emt 0:00:19]} 38. Rd8+ {[%emt 0:01:33]} Kc6 {[%emt 0:00:06]} 39. Rc8+ {[%emt 0:00:57]} Kd6 {[%emt 0:00:05]} 40. h4 {[%emt 0:02:29]} Nc6 {[%emt 0:00:33]} 41. h5 {[%emt 0:30:29]} 1-0